[Event "Rapid Tournament (RAP)"]
[Site "Biel, Switzerland"]
[Date "2026.07.12"]
[Round "7.40"]
[White "Jehnichen, Kai"]
[Black "Schmied, Stefan"]
[Result "1-0"]
[TimeControl "15 + 5"]
[WhiteTitle "-"]
[BlackTitle "-"]
[WhiteFideId "24684333"]
[BlackFideId "1335804"]
[WhiteElo "1903"]
[BlackElo "1778"]

1. e4 {[%clk 00:15:07]} {[%emt 00:00:02]} c6 {[%clk 00:15:10]} {[%emt
00:00:01]} 2. Nc3 {[%clk 00:15:06]} {[%emt 00:00:06]} d5 {[%clk 00:15:13]}
{[%emt 00:00:02]} 3. Nf3 {[%clk 00:15:09]} {[%emt 00:00:01]} Bg4 {[%clk
00:15:15]} {[%emt 00:00:04]} 4. h3 {[%clk 00:15:13]} {[%emt 00:00:01]} Bxf3
{[%clk 00:15:19]} 5. Qxf3 {[%clk 00:15:17]} {[%emt 00:00:01]} e6 {[%clk
00:15:23]} {[%emt 00:00:03]} 6. Be2 {[%clk 00:15:19]} Nf6 {[%clk 00:15:26]}
{[%emt 00:00:02]} 7. O-O {[%clk 00:15:21]} {[%emt 00:00:02]} Nxe4 {[%clk
00:14:48]} {[%emt 00:00:43]} 8. Nxe4 {[%clk 00:15:24]} {[%emt 00:00:02]} dxe4
{[%clk 00:14:52]} {[%emt 00:00:01]} 9. Qxe4 {[%clk 00:15:28]} {[%emt 00:00:02]}
Nd7 {[%clk 00:14:30]} {[%emt 00:00:27]} 10. d4 {[%clk 00:15:16]} {[%emt
00:00:16]} Nf6 {[%clk 00:14:33]} {[%emt 00:00:02]} 11. Qd3 {[%clk 00:15:16]}
{[%emt 00:00:04]} Be7 {[%clk 00:14:33]} {[%emt 00:00:05]} 12. a4 {[%clk
00:15:19]} {[%emt 00:00:03]} O-O {[%clk 00:14:18]} {[%emt 00:00:20]} 13. Rd1
{[%clk 00:15:17]} {[%emt 00:00:07]} Qc7 {[%clk 00:13:57]} {[%emt 00:00:27]} 14.
Bf3 {[%clk 00:14:44]} {[%emt 00:00:38]} Rfd8 {[%clk 00:13:50]} {[%emt
00:00:12]} 15. Qe2 {[%clk 00:14:47]} {[%emt 00:00:01]} c5 {[%clk 00:13:19]}
{[%emt 00:00:36]} 16. Be3 {[%clk 00:14:50]} {[%emt 00:00:03]} Rac8 {[%clk
00:12:57]} {[%emt 00:00:26]} 17. c3 {[%clk 00:14:53]} {[%emt 00:00:03]} cxd4
{[%clk 00:12:53]} {[%emt 00:00:10]} 18. Bxd4 {[%clk 00:14:54]} {[%emt
00:00:03]} b6 {[%clk 00:11:02]} {[%emt 00:01:55]} 19. a5 {[%clk 00:14:57]}
{[%emt 00:00:03]} Bc5 {[%clk 00:11:00]} {[%emt 00:00:06]} 20. Bxf6 {[%clk
00:14:53]} {[%emt 00:00:09]} gxf6 {[%clk 00:11:02]} {[%emt 00:00:03]} 21. a6
{[%clk 00:14:57]} {[%emt 00:00:02]} Qe5 {[%clk 00:09:55]} {[%emt 00:01:11]} 22.
Qxe5 {[%clk 00:14:46]} {[%emt 00:00:16]} fxe5 {[%clk 00:09:59]} {[%emt
00:00:01]} 23. Bb7 {[%clk 00:14:50]} {[%emt 00:00:02]} Rb8 {[%clk 00:09:51]}
{[%emt 00:00:12]} 24. b4 {[%clk 00:14:53]} {[%emt 00:00:02]} Be7 {[%clk
00:09:52]} {[%emt 00:00:03]} 25. Kf1 {[%clk 00:14:54]} {[%emt 00:00:06]} Bf6
{[%clk 00:08:51]} {[%emt 00:01:05]} 26. c4 {[%clk 00:14:43]} {[%emt 00:00:17]}
Rd4 {[%clk 00:08:51]} {[%emt 00:00:05]} 27. Rxd4 {[%clk 00:14:34]} {[%emt
00:00:14]} exd4 {[%clk 00:08:55]} 28. Rc1 {[%clk 00:14:36]} {[%emt 00:00:02]}
Kf8 {[%clk 00:08:43]} {[%emt 00:00:17]} 29. Ke2 {[%clk 00:14:34]} {[%emt
00:00:08]} Ke7 {[%clk 00:08:46]} {[%emt 00:00:02]} 30. f4 {[%clk 00:14:35]}
{[%emt 00:00:03]} Kd6 {[%clk 00:08:43]} {[%emt 00:00:07]} 31. Kd3 {[%clk
00:14:31]} {[%emt 00:00:10]} h5 {[%clk 00:08:39]} {[%emt 00:00:09]} 32. g4
{[%clk 00:14:34]} {[%emt 00:00:03]} hxg4 {[%clk 00:08:41]} {[%emt 00:00:02]} 33.
c5+ {[%clk 00:14:36]} {[%emt 00:00:03]} bxc5 {[%clk 00:08:39]} {[%emt
00:00:07]} 34. bxc5+ {[%clk 00:14:40]} {[%emt 00:00:02]} Kc7 {[%clk 00:08:32]}
{[%emt 00:00:11]} 35. hxg4 {[%clk 00:14:43]} {[%emt 00:00:02]} Rh8 {[%clk
00:08:17]} {[%emt 00:00:20]} 36. g5 {[%clk 00:14:41]} {[%emt 00:00:08]} Rh3+
{[%clk 00:08:12]} {[%emt 00:00:09]} 37. Kc4 {[%clk 00:14:43]} {[%emt 00:00:03]}
Bg7 {[%clk 00:08:07]} {[%emt 00:00:10]} 38. Be4 {[%clk 00:13:56]} {[%emt
00:00:51]} Ra3 {[%clk 00:07:23]} {[%emt 00:00:49]} 39. Bb7 {[%clk 00:13:53]}
{[%emt 00:00:09]} Rc3+ {[%clk 00:07:06]} {[%emt 00:00:23]} 40. Rxc3 {[%clk
00:13:52]} {[%emt 00:00:06]} dxc3 {[%clk 00:07:09]} {[%emt 00:00:01]} 41. Be4
{[%clk 00:13:55]} {[%emt 00:00:02]} Bh8 {[%clk 00:06:57]} {[%emt 00:00:17]} 42.
Bc2 {[%clk 00:13:57]} {[%emt 00:00:04]} Kc6 {[%clk 00:06:52]} {[%emt 00:00:10]}
43. Ba4+ {[%clk 00:13:59]} {[%emt 00:00:03]} Kc7 {[%clk 00:06:55]} 44. Kd3
{[%clk 00:13:55]} {[%emt 00:00:08]} Bg7 {[%clk 00:06:56]} {[%emt 00:00:04]} 45.
Be8 {[%clk 00:13:58]} {[%emt 00:00:03]} f5 {[%clk 00:06:42]} {[%emt 00:00:19]}
46. c6 {[%clk 00:13:27]} {[%emt 00:00:37]} Kb6 {[%clk 00:06:08]} {[%emt
00:00:39]} 47. Bd7 {[%clk 00:13:30]} {[%emt 00:00:02]} Kxa6 {[%clk 00:04:36]}
{[%emt 00:01:36]} 48. c7 {[%clk 00:13:33]} {[%emt 00:00:02]} Kb7 {[%clk
00:04:36]} {[%emt 00:00:05]} 49. c8=Q+ {[%clk 00:13:36]} {[%emt 00:00:03]} 1-0

[Event "Rapid Tournament (RAP)"]
[Site "Biel, Switzerland"]
[Date "2026.07.12"]
[Round "7.41"]
[White "Di Meo, Quentin"]
[Black "Kwiatkowski, Maciej"]
[Result "0-1"]
[TimeControl "15 + 5"]
[WhiteTitle "-"]
[BlackTitle "-"]
[WhiteFideId "1338498"]
[BlackFideId "1360175"]
[WhiteElo "1828"]
[BlackElo "1902"]

1. c4 {[%clk 00:15:07]} {[%emt 00:00:03]} Nf6 {[%clk 00:15:09]} {[%emt
00:00:04]} 2. Nc3 {[%clk 00:15:09]} e6 {[%clk 00:15:12]} {[%emt 00:00:03]} 3.
g3 {[%clk 00:15:10]} {[%emt 00:00:05]} d5 {[%clk 00:15:14]} {[%emt 00:00:02]} 4.
cxd5 {[%clk 00:15:11]} {[%emt 00:00:06]} exd5 {[%clk 00:15:17]} 5. Bg2 {[%clk
00:15:12]} {[%emt 00:00:04]} Be7 {[%clk 00:15:08]} {[%emt 00:00:14]} 6. d3
{[%clk 00:15:09]} {[%emt 00:00:08]} O-O {[%clk 00:15:09]} {[%emt 00:00:05]} 7.
Nf3 {[%clk 00:15:09]} {[%emt 00:00:04]} c6 {[%clk 00:14:05]} {[%emt 00:01:10]}
8. O-O {[%clk 00:15:06]} {[%emt 00:00:06]} Nbd7 {[%clk 00:14:06]} {[%emt
00:00:06]} 9. Bd2 {[%clk 00:14:55]} {[%emt 00:00:16]} Nc5 {[%clk 00:13:45]}
{[%emt 00:00:26]} 10. a3 {[%clk 00:14:25]} {[%emt 00:00:34]} d4 {[%clk
00:13:21]} {[%emt 00:00:30]} 11. Na4 {[%clk 00:13:40]} {[%emt 00:00:50]} Ne6
{[%clk 00:12:59]} {[%emt 00:00:27]} 12. b4 {[%clk 00:13:34]} {[%emt 00:00:09]}
Nd5 {[%clk 00:11:32]} {[%emt 00:01:33]} 13. Rc1 {[%clk 00:12:55]} {[%emt
00:00:45]} b5 {[%clk 00:11:20]} {[%emt 00:00:17]} 14. Nc5 {[%clk 00:12:02]}
{[%emt 00:00:57]} Nxc5 {[%clk 00:11:23]} {[%emt 00:00:03]} 15. bxc5 {[%clk
00:12:03]} {[%emt 00:00:04]} Bf6 {[%clk 00:11:26]} {[%emt 00:00:02]} 16. Ne1
{[%clk 00:11:19]} {[%emt 00:00:48]} Re8 {[%clk 00:11:10]} {[%emt 00:00:22]} 17.
Nc2 {[%clk 00:10:50]} {[%emt 00:00:34]} a5 {[%clk 00:10:49]} {[%emt 00:00:26]}
18. e4 {[%clk 00:09:56]} {[%emt 00:00:58]} dxe3 {[%clk 00:09:08]} {[%emt
00:01:47]} 19. Bxe3 {[%clk 00:09:53]} {[%emt 00:00:07]} Nc3 {[%clk 00:04:10]}
{[%emt 00:05:04]} 20. Qd2 {[%clk 00:09:20]} {[%emt 00:00:38]} Nd5 {[%clk
00:04:01]} {[%emt 00:00:14]} 21. d4 {[%clk 00:08:48]} {[%emt 00:00:37]} Bf5
{[%clk 00:03:43]} {[%emt 00:00:23]} 22. Rfe1 {[%clk 00:08:05]} {[%emt
00:00:48]} Qd7 {[%clk 00:03:29]} {[%emt 00:00:19]} 23. Re2 {[%clk 00:07:16]}
{[%emt 00:00:53]} Rab8 {[%clk 00:03:21]} {[%emt 00:00:14]} 24. Rce1 {[%clk
00:06:54]} {[%emt 00:00:26]} Bg4 {[%clk 00:02:13]} {[%emt 00:01:13]} 25. f3
{[%clk 00:06:47]} {[%emt 00:00:13]} Bf5 {[%clk 00:02:17]} {[%emt 00:00:01]} 26.
Bf2 {[%clk 00:06:18]} {[%emt 00:00:33]} Rxe2 {[%clk 00:02:10]} {[%emt
00:00:12]} 27. Rxe2 {[%clk 00:06:20]} {[%emt 00:00:03]} b4 {[%clk 00:02:12]}
{[%emt 00:00:04]} 28. axb4 {[%clk 00:06:09]} {[%emt 00:00:16]} axb4 {[%clk
00:02:16]} {[%emt 00:00:01]} 29. f4 {[%clk 00:05:47]} {[%emt 00:00:26]} b3
{[%clk 00:02:10]} {[%emt 00:00:12]} 30. Ne3 {[%clk 00:05:13]} {[%emt 00:00:39]}
Nxe3 {[%clk 00:01:56]} {[%emt 00:00:19]} 31. Qxe3 {[%clk 00:04:34]} {[%emt
00:00:44]} b2 {[%clk 00:01:51]} {[%emt 00:00:11]} 32. Be4 {[%clk 00:04:18]}
{[%emt 00:00:19]} Bxe4 {[%clk 00:01:47]} {[%emt 00:00:09]} 33. Qxe4 {[%clk
00:04:18]} {[%emt 00:00:06]} b1=Q+ {[%clk 00:01:44]} {[%emt 00:00:08]} 0-1

[Event "Rapid Tournament (RAP)"]
[Site "Biel, Switzerland"]
[Date "2026.07.12"]
[Round "7.42"]
[White "Groux, Mathias"]
[Black "Trubini, Timon"]
[Result "0-1"]
[TimeControl "15 + 5"]
[WhiteTitle "-"]
[BlackTitle "-"]
[WhiteFideId "1360752"]
[BlackFideId "1347799"]
[WhiteElo "1813"]
[BlackElo "1896"]

1. e4 {[%clk 00:14:45]} {[%emt 00:00:23]} c5 {[%clk 00:15:08]} {[%emt
00:00:03]} 2. c3 {[%clk 00:14:44]} {[%emt 00:00:06]} d5 {[%emt 00:00:34]} 3.
exd5 {[%clk 00:14:24]} Qxd5 {[%clk 00:15:06]} {[%emt 00:00:02]} 4. d4 {[%clk
00:14:26]} {[%emt 00:00:02]} cxd4 {[%clk 00:15:09]} {[%emt 00:00:03]} 5. cxd4
{[%clk 00:14:28]} {[%emt 00:00:04]} Nc6 {[%clk 00:14:44]} {[%emt 00:00:30]} 6.
Nf3 {[%clk 00:14:31]} {[%emt 00:00:01]} Bg4 {[%clk 00:12:05]} {[%emt 00:02:45]}
7. Be2 {[%clk 00:14:11]} {[%emt 00:00:23]} e6 {[%clk 00:11:32]} {[%emt
00:00:39]} 8. O-O {[%clk 00:14:01]} {[%emt 00:00:15]} Nf6 {[%clk 00:11:27]}
{[%emt 00:00:10]} 9. Nc3 {[%clk 00:13:57]} {[%emt 00:00:10]} Qd7 {[%clk
00:11:30]} {[%emt 00:00:01]} 10. Bf4 {[%clk 00:13:23]} {[%emt 00:00:40]} Be7
{[%clk 00:11:07]} {[%emt 00:00:27]} 11. Nb5 {[%clk 00:11:48]} {[%emt 00:01:40]}
Nd5 {[%clk 00:10:59]} {[%emt 00:00:14]} 12. Be3 {[%clk 00:09:49]} {[%emt
00:02:04]} O-O {[%clk 00:10:30]} {[%emt 00:00:34]} 13. h3 {[%clk 00:09:51]}
{[%emt 00:00:02]} Bf5 {[%clk 00:09:54]} {[%emt 00:00:41]} 14. Rc1 {[%clk
00:08:47]} {[%emt 00:01:09]} Rad8 {[%clk 00:09:09]} {[%emt 00:00:51]} 15. a3
{[%clk 00:08:30]} {[%emt 00:00:22]} a6 {[%clk 00:08:43]} {[%emt 00:00:31]} 16.
Nc3 {[%clk 00:08:27]} {[%emt 00:00:07]} Bd6 {[%clk 00:08:45]} {[%emt 00:00:03]}
17. Nh4 {[%clk 00:08:10]} {[%emt 00:00:21]} Bc7 {[%clk 00:08:38]} {[%emt
00:00:13]} 18. Nxf5 {[%clk 00:08:00]} {[%emt 00:00:15]} exf5 {[%clk 00:08:42]}
{[%emt 00:00:02]} 19. Nxd5 {[%clk 00:07:35]} {[%emt 00:00:29]} Qxd5 {[%clk
00:08:44]} {[%emt 00:00:03]} 20. Rc5 {[%clk 00:05:52]} {[%emt 00:01:49]} Qd6
{[%clk 00:08:41]} {[%emt 00:00:07]} 21. g3 {[%clk 00:05:07]} {[%emt 00:00:50]}
Bb6 {[%clk 00:05:47]} {[%emt 00:03:00]} 22. Rxf5 {[%clk 00:04:57]} {[%emt
00:00:15]} Nxd4 {[%clk 00:05:40]} {[%emt 00:00:12]} 23. Rf4 {[%clk 00:02:57]}
{[%emt 00:02:04]} Nxe2+ {[%clk 00:05:35]} {[%emt 00:00:11]} 24. Qxe2 {[%clk
00:02:58]} {[%emt 00:00:02]} Rfe8 {[%clk 00:05:23]} {[%emt 00:00:19]} 25. Qc4
{[%clk 00:02:48]} {[%emt 00:00:14]} Rxe3 {[%clk 00:04:00]} {[%emt 00:01:29]} 26.
Qxf7+ {[%clk 00:01:58]} {[%emt 00:00:54]} Kh8 {[%clk 00:04:03]} {[%emt
00:00:02]} 27. fxe3 {[%clk 00:01:48]} {[%emt 00:00:14]} Bxe3+ {[%clk 00:04:02]}
{[%emt 00:00:06]} 28. R1f2 {[%clk 00:01:25]} {[%emt 00:00:29]} Bxf2+ {[%clk
00:03:57]} {[%emt 00:00:10]} 29. Rxf2 {[%clk 00:01:26]} {[%emt 00:00:03]} Qxg3+
{[%clk 00:03:57]} {[%emt 00:00:06]} 30. Rg2 {[%clk 00:00:06]} {[%emt 00:01:26]}
Rd1+ {[%clk 00:03:54]} {[%emt 00:00:08]} 0-1

[Event "Rapid Tournament (RAP)"]
[Site "Biel, Switzerland"]
[Date "2026.07.12"]
[Round "7.43"]
[White "Berezovskii, Arina"]
[Black "Boyer, Jean-Francois"]
[Result "1-0"]
[TimeControl "15 + 5"]
[WhiteTitle "-"]
[BlackTitle "-"]
[WhiteFideId "34449850"]
[BlackFideId "650226"]
[WhiteElo "1895"]
[BlackElo "1749"]

1. e4 e5 2. Nf3 {[%clk 00:15:05]} Nc6 {[%clk 00:15:10]} {[%emt 01:09:22]} 3.
Bb5 {[%clk 00:15:16]} Nf6 {[%clk 00:15:12]} {[%emt 00:00:03]} 4. O-O {[%clk
00:15:18]} Nxe4 {[%clk 00:15:15]} {[%emt 00:00:04]} 5. d4 {[%clk 00:15:20]} Nd6
{[%clk 00:15:03]} {[%emt 00:00:22]} 6. Bxc6 dxc6 {[%clk 00:15:06]} 7. dxe5
{[%clk 00:15:19]} {[%emt 00:00:02]} Nf5 {[%clk 00:15:10]} 8. Qxd8+ {[%clk
00:15:22]} {[%emt 00:00:02]} Kxd8 {[%clk 00:15:13]} 9. Nc3 {[%clk 00:15:23]}
{[%emt 00:00:05]} Be7 {[%clk 00:14:56]} {[%emt 00:00:22]} 10. h3 {[%clk
00:15:20]} {[%emt 00:00:08]} h5 {[%clk 00:14:26]} {[%emt 00:00:36]} 11. Bf4
{[%clk 00:15:07]} {[%emt 00:00:17]} Be6 {[%clk 00:13:59]} {[%emt 00:00:32]} 12.
Ng5 {[%clk 00:14:54]} {[%emt 00:00:18]} Ke8 {[%clk 00:13:34]} {[%emt 00:00:30]}
13. Nxe6 {[%clk 00:14:49]} {[%emt 00:00:10]} fxe6 {[%clk 00:13:37]} {[%emt
00:00:02]} 14. Rad1 {[%clk 00:14:36]} {[%emt 00:00:18]} Rd8 {[%clk 00:13:33]}
{[%emt 00:00:09]} 15. Ne4 {[%clk 00:13:36]} {[%emt 00:01:05]} Rxd1 {[%clk
00:12:58]} {[%emt 00:00:40]} 16. Rxd1 {[%clk 00:13:38]} {[%emt 00:00:03]} Rg8
{[%clk 00:11:11]} {[%emt 00:01:52]} 17. Ng5 {[%clk 00:12:57]} {[%emt 00:00:46]}
Bc5 {[%clk 00:07:25]} {[%emt 00:03:50]} 18. Nxe6 {[%clk 00:12:12]} {[%emt
00:00:50]} Bb6 {[%clk 00:07:02]} {[%emt 00:00:29]} 19. Rd8+ {[%clk 00:11:49]}
{[%emt 00:00:28]} Kf7 {[%clk 00:07:05]} {[%emt 00:00:02]} 20. Ng5+ {[%clk
00:11:51]} {[%emt 00:00:02]} 1-0

[Event "Rapid Tournament (RAP)"]
[Site "Biel, Switzerland"]
[Date "2026.07.12"]
[Round "7.44"]
[White "Mueller, Ladina"]
[Black "Varela Tavares, Goncalo"]
[Result "0-1"]
[TimeControl "15 + 5"]
[WhiteTitle "-"]
[BlackTitle "-"]
[WhiteFideId "1351907"]
[BlackFideId "1344773"]
[WhiteElo "1807"]
[BlackElo "1880"]

1. c4 {[%clk 00:15:07]} {[%emt 00:00:02]} c5 {[%clk 00:14:35]} {[%emt
00:00:36]} 2. Nc3 {[%clk 00:15:10]} {[%emt 00:00:01]} b6 {[%clk 00:14:18]}
{[%emt 00:00:23]} 3. Nf3 {[%clk 00:15:12]} {[%emt 00:00:03]} Bb7 {[%clk
00:14:19]} {[%emt 00:00:03]} 4. e3 {[%clk 00:15:14]} {[%emt 00:00:03]} Nf6
{[%clk 00:14:10]} {[%emt 00:00:14]} 5. g3 {[%clk 00:15:13]} {[%emt 00:00:06]}
g6 {[%clk 00:14:10]} {[%emt 00:00:05]} 6. Bg2 {[%clk 00:15:16]} {[%emt
00:00:02]} Bg7 {[%clk 00:14:13]} {[%emt 00:00:02]} 7. O-O {[%clk 00:15:18]}
{[%emt 00:00:03]} O-O {[%clk 00:14:16]} {[%emt 00:00:02]} 8. Qc2 {[%clk
00:14:55]} {[%emt 00:00:28]} Nc6 {[%clk 00:14:07]} {[%emt 00:00:14]} 9. b3
{[%clk 00:14:53]} {[%emt 00:00:06]} d5 {[%clk 00:14:04]} {[%emt 00:00:09]} 10.
cxd5 {[%clk 00:14:36]} {[%emt 00:00:22]} Nb4 {[%clk 00:14:07]} {[%emt
00:00:01]} 11. Qb1 {[%clk 00:14:20]} {[%emt 00:00:21]} Nbxd5 {[%clk 00:13:02]}
{[%emt 00:01:11]} 12. Nxd5 {[%clk 00:14:07]} {[%emt 00:00:17]} Bxd5 {[%clk
00:12:52]} {[%emt 00:00:15]} 13. Bb2 {[%clk 00:13:51]} {[%emt 00:00:22]} Be4
{[%clk 00:12:40]} {[%emt 00:00:17]} 14. Qc1 {[%clk 00:13:29]} {[%emt 00:00:27]}
Rc8 {[%clk 00:12:20]} {[%emt 00:00:25]} 15. Rd1 {[%clk 00:12:39]} {[%emt
00:00:54]} Qd5 {[%clk 00:11:24]} {[%emt 00:01:01]} 16. Ne1 {[%clk 00:12:21]}
{[%emt 00:00:23]} Bxg2 {[%clk 00:09:55]} {[%emt 00:01:34]} 17. Nxg2 {[%clk
00:12:24]} {[%emt 00:00:03]} c4 {[%clk 00:09:43]} {[%emt 00:00:17]} 18. Nf4
{[%clk 00:11:42]} {[%emt 00:00:47]} Qe4 {[%clk 00:09:28]} {[%emt 00:00:20]} 19.
Qb1 {[%clk 00:11:09]} {[%emt 00:00:38]} Qf3 {[%clk 00:08:58]} {[%emt 00:00:35]}
20. bxc4 {[%clk 00:10:45]} {[%emt 00:00:29]} Rxc4 {[%clk 00:08:25]} {[%emt
00:00:38]} 21. d3 {[%clk 00:10:27]} {[%emt 00:00:23]} Ng4 {[%clk 00:07:20]}
{[%emt 00:01:10]} 22. Rd2 {[%clk 00:09:58]} {[%emt 00:00:34]} Rb4 {[%clk
00:05:55]} {[%emt 00:01:30]} 23. Qc1 {[%clk 00:09:38]} {[%emt 00:00:24]} Bxb2
{[%clk 00:05:00]} {[%emt 00:01:01]} 24. Rxb2 {[%clk 00:09:41]} {[%emt
00:00:03]} Rxb2 {[%clk 00:04:57]} {[%emt 00:00:07]} 25. Qxb2 {[%clk 00:09:44]}
{[%emt 00:00:02]} Rc8 {[%clk 00:04:52]} {[%emt 00:00:10]} 26. h3 {[%clk
00:09:35]} {[%emt 00:00:14]} Nf6 {[%clk 00:03:08]} {[%emt 00:01:49]} 27. Rc1
{[%clk 00:09:08]} {[%emt 00:00:32]} Rxc1+ {[%clk 00:03:11]} {[%emt 00:00:02]}
28. Qxc1 {[%clk 00:09:12]} {[%emt 00:00:01]} g5 {[%clk 00:03:06]} {[%emt
00:00:10]} 29. Ng2 {[%clk 00:09:00]} {[%emt 00:00:17]} Qf5 {[%clk 00:03:09]}
{[%emt 00:00:02]} 30. Qa3 {[%clk 00:07:08]} {[%emt 00:01:56]} Kf8 {[%clk
00:02:01]} {[%emt 00:01:14]} 31. Qxa7 {[%clk 00:06:29]} {[%emt 00:00:45]} Qxh3
{[%clk 00:01:25]} {[%emt 00:00:39]} 32. Qxb6 {[%clk 00:04:53]} {[%emt
00:01:42]} Ng4 {[%clk 00:01:18]} {[%emt 00:00:11]} 33. Qd8+ {[%clk 00:04:01]}
{[%emt 00:00:57]} Kg7 {[%clk 00:01:20]} {[%emt 00:00:02]} 34. Qd4+ {[%clk
00:04:03]} {[%emt 00:00:04]} f6 {[%clk 00:01:04]} {[%emt 00:00:22]} 35. Qe4
{[%clk 00:03:44]} {[%emt 00:00:23]} Kf7 {[%clk 00:00:41]} {[%emt 00:00:29]} 36.
a4 {[%clk 00:03:40]} {[%emt 00:00:09]} h5 {[%clk 00:00:43]} {[%emt 00:00:03]}
37. a5 {[%clk 00:03:32]} {[%emt 00:00:13]} Qh2+ {[%clk 00:00:25]} {[%emt
00:00:22]} 38. Kf1 {[%clk 00:03:34]} {[%emt 00:00:03]} Qh1+ {[%clk 00:00:24]}
{[%emt 00:00:06]} 39. Ke2 {[%clk 00:03:34]} {[%emt 00:00:05]} Qa1 {[%clk
00:00:20]} {[%emt 00:00:09]} 40. Qb4 {[%clk 00:02:32]} {[%emt 00:01:08]} Qa2+
{[%clk 00:00:22]} {[%emt 00:00:04]} 41. Qd2 {[%clk 00:02:33]} {[%emt 00:00:03]}
Qd5 {[%clk 00:00:23]} {[%emt 00:00:04]} 42. e4 {[%clk 00:02:04]} {[%emt
00:00:33]} Qc5 {[%clk 00:00:26]} {[%emt 00:00:02]} 43. Ne3 {[%clk 00:01:30]}
{[%emt 00:00:39]} Nxe3 {[%clk 00:00:29]} {[%emt 00:00:02]} 44. d4 {[%clk
00:00:44]} {[%emt 00:00:52]} Qb5+ {[%clk 00:00:10]} {[%emt 00:00:25]} 45. Kxe3
{[%clk 00:00:47]} {[%emt 00:00:02]} h4 {[%clk 00:00:13]} {[%emt 00:00:01]} 46.
gxh4 {[%clk 00:00:32]} {[%emt 00:00:19]} gxh4 {[%clk 00:00:17]} {[%emt
00:00:02]} 47. f3 {[%clk 00:00:12]} {[%emt 00:00:25]} Qg5+ {[%clk 00:00:21]}
{[%emt 00:00:02]} 0-1